bitfinex-derivatives/quotes_BNBF0:USTF0_20250810
["timestamp","ask_amount","ask_price","bid_price","bid_amount"]
[1754797387470,0.21378285,815.12,813.68,2.72690082]
[1754797387671,0.21378285,815.12,813.69,0.97829131]
[1754797387870,0.21378285,815.12,813.89,2.72690082]
[1754797388072,0.21378285,815.12,813.9,0.97829131]
[1754797388371,0.21378285,815.12,813.91,0.97829131]
[1754797388568,0.21378285,815.12,813.89,2.72690082]
[1754797388569,0.21378285,815.12,813.92,0.97829131]
[1754797388871,0.21378285,815.12,814.0,2.72690082]
[1754797389468,0.21378285,815.12,813.54,3.81766115]
[1754797389469,0.21378285,815.12,814.28,2.72690082]
[1754797389868,0.21378285,815.12,814.34,2.72690082]
[1754797390170,0.21378285,815.12,814.02,3.81766115]
[1754797390770,0.21378285,815.12,813.97,2.72690082]
[1754797392277,0.21378285,815.12,813.89,2.72690082]
[1754797393272,0.21378285,815.12,813.76,2.72690082]
[1754797395775,0.21378285,815.12,813.77,0.97877736]
[1754797395979,0.21378285,815.12,813.78,2.72690082]
[1754797396479,0.21378285,815.12,813.81,2.72690082]
[1754797397081,0.21378285,815.12,813.8,2.72690082]
[1754797397675,0.21378285,815.12,813.76,2.72690082]
[1754797397881,0.21378285,815.12,814.54,1.63851694]
[1754797398177,0.21378285,815.12,813.77,0.97882508]
[1754797398178,0.21378285,815.12,814.56,1.63851694]
[1754797398781,0.21378285,815.12,814.55,1.63851694]
[1754797399582,0.21378285,815.12,814.54,1.63851694]
[1754797400180,0.21378285,815.12,814.66,1.63851694]
[1754797403185,0.21378285,815.12,813.89,2.72690082]
[1754797403186,0.21378285,815.12,814.67,1.63851694]
[1754797404186,0.21378285,815.12,814.66,1.63851694]
[1754797404887,0.21378285,815.12,814.67,1.63851694]
[1754797405882,0.21378285,815.12,814.65,1.63851694]
[1754797406187,0.21378285,815.12,814.61,1.63851694]
[1754797407188,0.21378285,815.12,814.62,1.63851694]
[1754797407892,0.21378285,815.12,814.66,1.63851694]
[1754797408891,0.21378285,815.12,814.67,1.63851694]
[1754797409394,0.21378285,815.12,814.68,1.63851694]
[1754797409592,0.21378285,815.12,814.67,1.63851694]
[1754797409794,0.21378285,815.12,814.64,1.63851694]
[1754797409994,0.21378285,815.12,814.57,1.63851694]
[1754797410392,0.21378285,815.12,814.59,1.63851694]
[1754797411093,0.21378285,815.12,814.6,1.63851694]
[1754797411294,0.21378285,815.12,814.61,1.63851694]
[1754797412391,0.21378285,815.12,814.6,1.63851694]
[1754797412790,0.21378285,815.12,814.59,1.63851694]
[1754797412990,0.21378285,815.12,814.57,1.63851694]
[1754797415794,0.21378285,815.12,814.58,1.63851694]
[1754797415988,0.21378285,815.12,814.61,1.63851694]
[1754797417094,0.21378285,815.12,814.62,1.63851694]
[1754797417392,0.21378285,815.12,814.61,1.63851694]
[1754797417695,0.21378285,815.12,814.63,1.63851694]
[1754797417895,0.21378285,815.12,814.61,1.63851694]
[1754797419796,0.21378285,815.12,814.63,1.63851694]
[1754797420996,0.21378285,815.12,814.64,1.63851694]
[1754797422298,0.21378285,815.12,814.65,1.63851694]
[1754797422897,0.21378285,815.12,814.7,1.63851694]
[1754797423296,0.21378285,815.12,814.69,1.63851694]
[1754797423592,0.21378285,815.12,814.7,1.63851694]
[1754797424097,0.21378285,815.12,814.72,1.63851694]
[1754797424493,0.21378285,815.12,814.7,1.63851694]
[1754797425300,0.21378285,815.12,814.64,1.63851694]
[1754797425897,0.5,815.27,814.63,1.63851694]
[1754797426101,0.21371589,815.01,814.63,1.63851694]
[1754797426599,0.5,815.31,814.63,1.63851694]
[1754797426802,0.2136844,814.92,814.63,1.63851694]
[1754797426999,0.294,815.15,814.63,1.63851694]
[1754797427203,0.21371392,814.87,814.63,1.63851694]
[1754797427603,0.5,815.29,814.63,1.63851694]
[1754797427803,0.21372114,814.87,814.64,1.63851694]
[1754797428106,0.5,815.29,814.64,1.63851694]
[1754797428403,0.21371458,814.87,814.64,1.63851694]
[1754797428599,0.5,815.26,814.64,1.63851694]
[1754797428803,0.21371458,815.13,814.64,1.63851694]
[1754797430098,0.21371458,815.13,814.65,1.63851694]
[1754797430501,0.294,815.01,814.43,1.63851694]
[1754797430701,0.294,814.92,814.31,1.63851694]
[1754797430901,0.37,814.92,814.31,1.63851694]
[1754797431105,0.37,814.92,814.29,1.63851694]
[1754797431406,0.5,814.87,814.35,1.63851694]
[1754797431705,0.261,814.86,814.39,1.63851694]
[1754797432202,0.5,814.95,814.38,1.63851694]
[1754797432406,0.5,814.95,814.36,1.63851694]
[1754797432606,0.261,814.89,814.36,1.63851694]
[1754797433105,0.261,814.89,814.35,1.63851694]
[1754797434006,0.261,814.89,814.32,1.63851694]
[1754797434207,0.261,814.89,814.3,1.63851694]
[1754797434401,0.5,814.87,814.34,1.63851694]
[1754797435107,0.5,814.87,814.33,1.63851694]
[1754797435404,0.294,814.82,814.33,1.63851694]
[1754797435608,0.5,814.86,814.33,1.63851694]
[1754797436309,0.5,814.86,814.32,1.63851694]
[1754797436604,0.5,814.86,814.34,1.63851694]
[1754797436808,0.5,814.86,814.33,1.63851694]
[1754797437309,0.5,814.86,813.75,2.72690082]
[1754797437310,0.5,814.86,814.32,1.63851694]
[1754797437611,0.5,814.79,813.85,1.63851694]
[1754797437910,0.5,814.78,813.85,1.63851694]
[1754797438211,0.5,814.78,813.81,1.63851694]
[1754797438505,0.5,814.72,813.78,1.63851694]
[1754797439211,0.5,814.72,813.76,1.63851694]
[1754797439710,0.5,814.72,813.75,1.63851694]
[1754797440010,0.5,814.72,813.63,1.63851694]
[1754797440307,0.5,814.73,813.63,1.63851694]
[1754797440708,0.5,814.87,813.64,1.63851694]
[1754797441113,0.334,814.85,813.64,1.63851694]
[1754797441311,0.5,814.77,813.64,1.63851694]
[1754797441507,0.366,814.85,813.62,1.63851694]
[1754797441713,0.258,814.85,813.62,1.63851694]
[1754797441910,0.366,814.85,813.62,1.63851694]
[1754797442312,0.366,814.85,813.6,1.63851694]
[1754797442914,0.258,814.85,813.6,1.63851694]
[1754797443113,0.258,814.85,813.66,1.63851694]
[1754797443318,0.258,814.85,813.64,1.63851694]
[1754797444212,0.258,814.85,813.63,1.63851694]
[1754797444417,0.258,814.85,813.55,1.372]
[1754797444418,0.258,814.85,813.68,1.63851694]
[1754797445115,0.366,814.85,813.67,1.63851694]
[1754797446212,0.5,814.82,813.66,1.63851694]
[1754797446617,0.5,814.79,813.66,1.63851694]
[1754797447217,0.5,814.79,813.65,1.63851694]
[1754797447419,0.5,814.79,813.83,1.63851694]
[1754797447916,0.5,814.76,813.83,1.63851694]
[1754797448719,0.5,814.73,813.9,1.63851694]
[1754797448916,0.5,814.73,813.89,1.63851694]
[1754797449120,0.5,814.65,813.83,1.63851694]
[1754797449421,0.5,814.65,813.76,1.63851694]
[1754797449921,0.5,814.65,813.9,1.63851694]
[1754797450322,0.5,814.65,813.88,1.63851694]
[1754797451123,0.5,814.65,813.86,1.63851694]
[1754797451724,0.5,814.65,813.87,1.63851694]
[1754797451920,0.5,814.72,813.88,1.63851694]
[1754797452120,0.5,814.72,813.87,1.63851694]
[1754797452419,0.5,814.72,813.86,1.63851694]
[1754797452625,0.258,814.73,813.86,1.63851694]
[1754797452921,0.26,814.69,813.86,1.63851694]
[1754797453223,0.26,814.69,813.84,1.63851694]
[1754797453424,0.5,814.76,813.84,1.63851694]
[1754797454226,0.5,814.76,813.85,1.63851694]
[1754797455222,0.5,814.76,813.84,1.63851694]
[1754797455827,0.5,814.76,813.83,1.63851694]
[1754797456322,0.5,814.76,813.81,1.63851694]
[1754797457228,0.5,814.76,813.8,1.63851694]
[1754797458226,0.5,814.76,813.15,1.298]
[1754797458227,0.5,814.76,813.79,1.63851694]
[1754797458630,0.5,814.76,813.8,1.63851694]
[1754797458928,0.5,814.76,813.86,1.63851694]
[1754797459124,0.5,814.83,813.85,1.63851694]
[1754797459325,0.5,814.83,813.15,1.298]
[1754797459326,0.5,814.83,813.88,1.63851694]
[1754797459539,0.5,814.83,813.9,1.63851694]
[1754797460028,0.5,814.83,813.88,1.63851694]
[1754797460230,0.5,814.83,813.89,1.63851694]
[1754797461237,0.5,814.83,813.88,1.63851694]
[1754797462226,0.5,814.83,813.87,1.63851694]
[1754797462431,0.5,814.83,813.88,1.63851694]
[1754797463226,0.294,814.77,813.88,1.63851694]
[1754797463438,0.5,814.83,813.88,1.63851694]
[1754797463638,0.5,814.85,813.89,1.63851694]
[1754797463832,0.5,814.85,813.9,1.63851694]
[1754797464233,0.5,814.85,813.92,1.63851694]
[1754797465934,0.294,814.79,813.92,1.63851694]
[1754797466133,0.5,814.85,813.92,1.63851694]
[1754797467235,0.5,814.85,813.93,1.63851694]
[1754797467435,0.5,814.85,813.92,1.63851694]
[1754797467934,0.21371458,815.13,813.92,1.63851694]
[1754797467935,0.5,814.74,813.92,1.63851694]
[1754797468336,0.5,814.74,813.93,1.63851694]
[1754797468535,0.5,814.74,813.94,1.63851694]
[1754797468830,0.5,814.74,813.88,1.63851694]
[1754797469229,0.5,814.74,813.87,1.63851694]
[1754797469430,0.5,814.79,813.87,1.63851694]
[1754797469632,0.5,814.79,813.85,1.63851694]
[1754797469833,0.5,814.72,813.84,1.63851694]
[1754797470131,0.5,814.72,813.82,1.63851694]
[1754797470335,0.5,814.71,813.82,1.63851694]
[1754797470734,0.5,814.72,813.82,1.63851694]
[1754797471436,0.5,814.72,813.83,1.63851694]
[1754797471632,0.298,814.63,813.82,1.63851694]
[1754797471836,0.5,814.71,813.82,1.63851694]
[1754797472233,0.5,814.71,813.19,2.72690082]
[1754797472234,0.5,814.71,813.83,1.63851694]
[1754797472736,0.5,814.72,813.83,1.63851694]
[1754797473138,0.298,814.68,813.84,1.63851694]
[1754797473332,0.21371458,815.13,812.38,5.45380165]
[1754797473333,0.5,814.71,813.76,1.63851694]
[1754797474532,0.5,814.71,813.74,1.63851694]
[1754797475136,0.5,814.71,813.75,1.63851694]
[1754797475434,0.263,814.54,813.74,1.63851694]
[1754797475638,0.5,814.63,813.68,1.63851694]
[1754797476135,0.5,814.63,812.93,2.72690082]
[1754797476136,0.263,814.5,813.69,1.63851694]
[1754797476835,0.262,814.5,813.69,1.63851694]
[1754797477338,0.262,814.5,812.95,2.72690082]
[1754797477339,0.5,814.63,813.7,1.63851694]
[1754797477636,0.262,814.5,813.7,1.63851694]
[1754797478140,0.262,814.5,813.71,1.63851694]
[1754797478334,0.5,814.63,813.71,1.63851694]
[1754797478639,0.21371458,815.13,813.71,1.63851694]
[1754797478640,0.262,814.5,813.71,1.63851694]
[1754797478840,0.262,814.5,813.8,1.63851694]
[1754797479036,0.262,814.5,813.77,1.63851694]
[1754797479335,0.262,814.5,813.75,1.63851694]
[1754797479737,0.262,814.5,813.74,1.63851694]
[1754797480040,0.262,814.5,813.63,1.63851694]
[1754797480241,0.5,814.63,813.64,1.63851694]
[1754797480441,0.5,814.66,813.63,1.63851694]
[1754797480640,0.5,814.68,813.63,1.63851694]
[1754797480836,0.5,814.72,813.62,1.63851694]
[1754797481036,0.296,814.68,813.68,1.63851694]
[1754797481241,0.5,814.72,813.61,1.63851694]
[1754797481643,0.5,814.72,813.62,1.63851694]
[1754797481839,0.5,814.72,813.63,1.63851694]
[1754797482043,0.296,814.5,813.04,1.63851694]
[1754797482243,0.5,814.62,813.48,1.63851694]
[1754797482444,0.5,814.62,813.55,1.63851694]
[1754797482640,0.5,814.62,813.56,1.63851694]
[1754797482840,0.5,814.62,813.55,1.63851694]
[1754797483041,0.5,814.62,812.9,1.121]
[1754797483042,0.5,814.62,813.56,1.63851694]
[1754797483246,0.5,814.62,813.6,1.63851694]
[1754797483953,0.33,814.56,813.59,1.63851694]
[1754797484147,0.5,814.62,813.61,1.63851694]
[1754797484845,0.5,814.62,813.6,1.63851694]
[1754797485044,0.5,814.62,813.57,1.63851694]
[1754797486248,0.5,814.62,813.59,1.63851694]
[1754797487151,0.5,814.62,813.62,1.63851694]
[1754797487354,0.5,814.62,813.66,1.63851694]
[1754797488150,0.5,814.62,813.69,1.63851694]
[1754797489050,0.5,814.62,813.73,1.63851694]
[1754797489251,0.5,814.62,813.72,1.63851694]
[1754797489949,0.5,814.62,813.86,1.63851694]
[1754797490157,0.5,814.62,813.9,1.63851694]
[1754797491755,0.5,814.72,813.95,1.63851694]
[1754797492157,0.5,814.72,813.96,1.63851694]
[1754797493259,0.5,814.72,813.97,1.63851694]
[1754797493456,0.5,814.72,814.02,1.63851694]
[1754797493661,0.5,814.77,814.1,1.63851694]
[1754797493861,0.5,814.77,814.08,1.63851694]
[1754797494062,0.5,814.77,814.09,1.63851694]
[1754797494358,0.5,814.77,814.05,1.63851694]
[1754797494658,0.5,814.91,814.11,1.63851694]
[1754797494870,0.5,814.91,814.12,1.63851694]
[1754797495062,0.5,814.91,814.13,1.63851694]
[1754797495264,0.5,814.91,814.12,1.63851694]
[1754797495964,0.5,814.91,814.15,1.63851694]
[1754797496664,0.5,814.91,814.14,1.63851694]
[1754797497363,0.5,814.86,814.16,1.63851694]
[1754797497558,0.367,814.82,814.16,1.63851694]
[1754797499565,0.5,814.81,814.16,1.63851694]
[1754797500062,0.5,814.81,814.08,1.63851694]
[1754797501169,0.4,814.82,814.08,1.63851694]
[1754797501367,0.291,814.82,814.08,1.63851694]
[1754797501868,0.291,814.82,814.18,1.63851694]
[1754797502070,0.258,814.82,814.18,1.63851694]
[1754797503182,0.367,814.82,814.18,1.63851694]
[1754797503369,0.367,814.82,814.15,1.63851694]
[1754797504069,0.5,814.92,814.17,1.63851694]
[1754797504364,0.5,814.92,814.19,1.63851694]
[1754797504671,0.5,814.92,814.2,1.63851694]
[1754797504965,0.5,814.76,814.19,1.63851694]
[1754797505170,0.499,814.76,814.18,1.63851694]
[1754797505366,0.299,814.75,814.17,1.63851694]
[1754797505565,0.299,814.75,814.11,1.63851694]
[1754797505765,0.299,814.75,814.12,1.63851694]
[1754797506065,0.21371458,815.13,814.12,1.63851694]
[1754797506066,0.258,814.88,814.12,1.63851694]
[1754797506765,0.292,814.88,814.12,1.63851694]
[1754797507670,0.296,814.76,814.12,1.63851694]
[1754797507865,0.296,814.84,814.12,1.63851694]
[1754797508070,0.296,814.85,814.12,1.63851694]
[1754797508265,0.33,814.71,814.05,1.63851694]
[1754797508471,0.5,814.73,814.05,1.63851694]
[1754797508868,0.5,814.73,814.06,1.63851694]
[1754797509270,0.5,814.73,814.05,1.63851694]
[1754797509470,0.368,814.78,814.06,1.63851694]
[1754797509971,0.368,814.78,814.1,1.63851694]
[1754797510566,0.5,814.92,814.11,1.63851694]
[1754797510772,0.33,814.82,814.11,1.63851694]
[1754797510966,0.478,814.91,814.11,1.63851694]
[1754797511874,0.33,814.82,814.11,1.63851694]
[1754797512168,0.296,814.91,814.11,1.63851694]
[1754797512370,0.5,814.92,814.11,1.63851694]
[1754797512771,0.296,814.65,814.11,1.63851694]
[1754797512972,0.5,814.8,814.11,1.63851694]
[1754797513272,0.5,814.8,814.1,1.63851694]
[1754797515372,0.5,814.8,814.12,1.63851694]
[1754797515770,0.21371458,815.13,814.12,1.63851694]
[1754797515771,0.402,814.86,814.12,1.63851694]
[1754797515967,0.5,814.82,814.1,1.63851694]
[1754797516270,0.21371458,815.13,814.1,1.63851694]
[1754797516271,0.292,814.86,814.1,1.63851694]
[1754797516770,0.292,814.86,814.11,1.63851694]
[1754797517274,0.262,814.84,814.11,1.63851694]
[1754797518069,0.262,814.84,814.21,1.63851694]
[1754797518568,0.402,814.86,814.13,1.63851694]
[1754797518768,0.292,814.86,814.13,1.63851694]
[1754797519868,0.5,814.91,814.13,1.63851694]
[1754797520072,0.5,814.91,814.14,1.63851694]
[1754797520769,0.5,814.91,814.15,1.63851694]
[1754797522876,0.5,814.91,814.14,1.63851694]
[1754797525173,0.5,814.91,814.15,1.63851694]
[1754797525879,0.5,814.91,814.16,1.63851694]
[1754797526376,0.5,814.91,814.17,1.63851694]
[1754797527186,0.5,814.91,814.15,1.63851694]
[1754797527680,0.5,814.73,813.86,1.63851694]
[1754797527880,0.324,814.64,813.82,1.63851694]
[1754797528181,0.5,814.73,813.69,1.63851694]
[1754797529077,0.292,814.72,813.69,1.63851694]
[1754797529379,0.5,814.73,813.69,1.63851694]
[1754797529579,0.5,814.75,813.69,1.63851694]
[1754797529980,0.5,814.75,813.52,1.63851694]
[1754797530779,0.5,814.75,813.51,1.63851694]
[1754797533481,0.5,814.75,813.52,1.63851694]
[1754797533681,0.5,814.75,813.62,1.63851694]
[1754797534979,0.5,814.67,813.61,1.63851694]
[1754797535380,0.26,814.71,813.61,1.63851694]
[1754797535978,0.26,814.72,813.61,1.63851694]
[1754797536877,0.26,814.72,813.83,1.63851694]
[1754797539781,0.295,814.72,813.88,1.63851694]
[1754797540077,0.5,814.75,814.11,1.63851694]
[1754797540281,0.298,814.6,814.11,1.63851694]
[1754797540479,0.5,814.73,814.12,1.63851694]
[1754797540680,0.5,814.73,814.14,1.63851694]
[1754797540980,0.5,814.73,814.16,1.63851694]
[1754797541181,0.5,814.73,814.17,1.63851694]
[1754797541380,0.5,814.73,814.18,1.63851694]
[1754797541880,0.333,814.63,814.18,1.63851694]
[1754797542077,0.5,814.75,814.18,1.63851694]
[1754797542277,0.5,814.75,814.13,1.63851694]
[1754797542482,0.5,814.62,814.09,1.63851694]
[1754797542682,0.5,814.62,814.05,1.63851694]
[1754797543083,0.298,814.61,814.05,1.63851694]
[1754797543584,0.369,814.61,814.05,1.63851694]
[1754797544483,0.369,814.61,814.08,1.63851694]
[1754797544779,0.293,814.61,814.08,1.63851694]
[1754797544978,0.369,814.61,814.08,1.63851694]
[1754797546083,0.258,814.61,814.08,1.63851694]
[1754797546284,0.301,814.61,814.09,1.63851694]
[1754797547284,0.301,814.61,814.1,1.63851694]
[1754797547483,0.301,814.61,814.09,1.63851694]
[1754797548184,0.301,814.61,814.1,1.63851694]
[1754797549482,0.5,814.62,814.1,1.63851694]
[1754797549686,0.472,814.55,814.1,1.63851694]
[1754797549881,0.365,814.55,814.1,1.63851694]
[1754797550086,0.365,814.55,814.03,1.63851694]
[1754797550285,0.365,814.55,814.04,1.63851694]
[1754797550484,0.365,814.55,813.33,2.72690082]
[1754797550485,0.365,814.55,814.03,1.63851694]
[1754797550682,0.365,814.55,814.02,1.63851694]
[1754797550986,0.365,814.55,813.97,1.63851694]
[1754797551185,0.365,814.55,812.96,3.81766115]
[1754797551186,0.472,814.55,813.87,1.63851694]
[1754797551389,0.29,814.41,813.86,1.63851694]
[1754797551686,0.5,814.5,813.86,1.63851694]
[1754797551881,0.365,814.45,813.86,1.63851694]
[1754797552286,0.258,814.45,813.88,1.63851694]
[1754797552486,0.365,814.45,813.87,1.63851694]
[1754797552884,0.258,814.45,813.88,1.63851694]
[1754797553088,0.5,814.5,813.88,1.63851694]
[1754797553283,0.5,814.5,813.87,1.63851694]
[1754797553684,0.5,814.5,813.82,1.63851694]
[1754797554691,0.5,814.5,813.81,1.63851694]
[1754797554991,0.5,814.62,813.82,1.63851694]
[1754797555392,0.259,814.55,813.82,1.63851694]
[1754797555588,0.258,814.54,813.79,1.63851694]
[1754797555992,0.258,814.54,813.81,1.63851694]
[1754797556192,0.258,814.54,813.8,1.63851694]
[1754797556394,0.258,814.54,813.79,1.63851694]
[1754797557095,0.258,814.54,813.78,1.63851694]
[1754797557591,0.398,814.54,813.78,1.63851694]
[1754797557796,0.29,814.54,813.78,1.63851694]
[1754797558092,0.366,814.54,813.79,1.63851694]
[1754797558297,0.26,814.44,813.79,1.63851694]
[1754797558592,0.366,814.54,813.8,1.63851694]
[1754797558794,0.26,814.52,813.8,1.63851694]
[1754797559193,0.298,814.52,813.8,1.63851694]
[1754797559397,0.298,814.52,813.79,1.63851694]
[1754797559596,0.29,814.54,813.78,1.63851694]
[1754797559794,0.324,814.52,813.78,1.63851694]
[1754797559997,0.29,814.54,813.78,1.63851694]
[1754797560199,0.29,814.54,813.81,1.63851694]
[1754797560396,0.5,814.54,813.81,1.63851694]
[1754797560699,0.398,814.54,813.81,1.63851694]
[1754797561295,0.366,814.44,813.78,1.63851694]
[1754797561695,0.366,814.44,813.77,1.63851694]
[1754797562100,0.26,814.43,813.77,1.63851694]
[1754797562599,0.26,814.28,813.69,1.63851694]
[1754797562800,0.5,814.38,813.69,1.63851694]
[1754797563199,0.26,814.28,813.68,1.63851694]
[1754797563599,0.26,814.28,813.71,1.63851694]
[1754797563803,0.292,814.19,813.71,1.63851694]
[1754797564000,0.8280497,814.94,812.9,0.879]
[1754797564001,0.5,814.13,813.57,1.63851694]
[1754797564201,0.5,814.38,813.64,1.63851694]
[1754797564398,0.5,814.44,813.66,1.63851694]
[1754797565202,0.5,814.44,813.64,1.63851694]
[1754797565603,0.292,814.42,813.64,1.63851694]
[1754797565804,0.31,814.46,813.63,1.63851694]
[1754797566003,0.5,814.49,813.65,1.63851694]
[1754797566306,0.5,814.49,813.67,1.63851694]
[1754797566907,0.5,814.55,813.67,1.63851694]
[1754797567107,0.5,814.55,813.66,1.63851694]
[1754797567605,0.315,814.52,813.66,1.63851694]
[1754797568009,0.5,814.55,813.66,1.63851694]
[1754797568411,0.298,814.44,813.65,1.63851694]
[1754797568609,0.315,814.52,813.65,1.63851694]
[1754797568806,0.315,814.52,813.66,1.63851694]
[1754797569606,0.369,814.48,813.66,1.63851694]
[1754797570109,0.369,814.48,813.49,1.63851694]
[1754797570405,0.5,814.41,813.49,1.63851694]
[1754797570810,0.369,814.48,813.49,1.63851694]
[1754797571011,0.5,814.55,813.5,1.63851694]
[1754797571407,0.5,814.55,813.56,1.63851694]
[1754797572006,0.5,814.55,813.62,1.63851694]
[1754797572210,0.5,814.55,813.61,1.63851694]
[1754797573211,0.5,814.55,813.62,1.63851694]
[1754797573714,0.315,814.52,813.62,1.63851694]
[1754797574016,0.5,814.55,813.62,1.63851694]
[1754797574210,0.315,814.52,813.62,1.63851694]
[1754797574813,0.263,814.36,813.62,1.63851694]
[1754797575013,0.263,814.36,813.6,1.63851694]
[1754797575213,0.263,814.36,813.57,1.63851694]
[1754797575610,0.5,814.41,813.55,1.63851694]
[1754797576215,0.5,814.41,813.54,1.63851694]
[1754797576612,0.5,814.41,813.55,1.63851694]
[1754797576812,0.5,814.47,813.55,1.63851694]
[1754797577214,0.5,814.47,812.9,0.879]
[1754797577215,0.5,814.47,813.54,1.63851694]
[1754797577510,0.5,814.47,812.9,0.879]
[1754797577511,0.5,814.47,813.56,1.63851694]
[1754797578117,0.5,814.47,813.55,1.63851694]
[1754797578316,0.5,814.47,813.56,1.63851694]
[1754797578516,0.5,814.55,813.56,1.63851694]
[1754797579118,0.5,814.55,813.55,1.63851694]
[1754797579418,0.5,814.55,813.56,1.63851694]
[1754797580120,0.5,814.55,813.7,1.63851694]
[1754797580422,0.5,814.55,813.71,1.63851694]
[1754797581922,0.5,814.55,813.72,1.63851694]
[1754797582419,0.352,814.53,813.69,1.63851694]
[1754797582621,0.428,814.53,813.7,1.63851694]
[1754797582923,0.3,814.52,813.7,1.63851694]
[1754797583123,0.5,814.55,813.7,1.63851694]
[1754797583321,0.3,814.49,813.7,1.63851694]
[1754797583524,0.3,814.47,813.7,1.63851694]
[1754797583823,0.316,814.54,813.71,1.63851694]
[1754797584225,0.316,814.54,813.67,1.63851694]
[1754797584424,0.316,814.54,813.68,1.63851694]
[1754797584624,0.316,814.54,813.7,1.63851694]
[1754797585524,0.316,814.54,813.71,1.63851694]
[1754797586422,0.316,814.54,813.72,1.63851694]
[1754797587425,0.316,814.54,813.73,1.63851694]
[1754797588125,0.349,814.54,813.76,1.63851694]
[1754797588322,0.313,814.53,813.76,1.63851694]
[1754797588526,0.5,814.55,813.76,1.63851694]
[1754797589225,0.5,814.55,813.77,1.63851694]
[1754797589725,0.313,814.53,813.77,1.63851694]
[1754797589924,0.313,814.53,813.78,1.63851694]
[1754797590124,0.313,814.54,813.75,1.63851694]
[1754797590422,0.313,814.54,813.76,1.63851694]
[1754797591423,0.313,814.53,813.77,1.63851694]
[1754797592021,0.313,814.54,813.77,1.63851694]
[1754797592226,0.313,814.54,813.79,1.63851694]
[1754797593321,0.313,814.54,813.8,1.63851694]
[1754797594123,0.313,814.54,813.83,1.63851694]
[1754797594328,0.313,814.54,813.84,1.63851694]
[1754797594729,0.313,814.54,813.87,1.63851694]
[1754797596227,0.313,814.54,813.86,1.63851694]
[1754797596727,0.312,814.53,813.86,1.63851694]
[1754797596932,0.313,814.54,813.86,1.63851694]
[1754797597125,0.21371458,815.13,813.75,1.63851694]
[1754797597126,0.26,814.35,813.75,1.63851694]
[1754797597333,0.5,814.37,813.67,1.63851694]
[1754797597528,0.5,814.37,813.61,1.63851694]
[1754797597830,0.5,814.37,813.37,1.63851694]
[1754797598030,0.366,814.3,813.27,1.63851694]
[1754797598232,0.366,814.3,813.25,1.63851694]
[1754797598425,0.5,814.11,813.24,1.63851694]
[1754797598731,0.5,814.11,813.25,1.63851694]
[1754797598927,0.21371458,815.13,813.19,1.63851694]
[1754797598928,0.29,814.08,813.19,1.63851694]
[1754797599327,0.29,814.08,813.16,1.63851694]
[1754797599530,0.292,813.89,813.21,1.63851694]
[1754797599826,0.304,813.89,813.32,1.63851694]
[1754797600030,0.26,813.86,813.25,1.63851694]
[1754797600230,0.26,813.86,813.14,1.63851694]
[1754797600430,0.266,813.7,813.15,1.63851694]
[1754797600628,0.412,813.8,813.15,1.63851694]
[1754797600832,0.5,813.92,813.17,1.63851694]
[1754797601032,0.5,813.92,813.16,1.63851694]
[1754797601328,0.5,813.91,813.14,1.63851694]
[1754797601531,0.26,813.89,813.11,1.63851694]
[1754797601831,0.5,813.91,813.11,1.63851694]
[1754797602028,0.258,813.87,813.1,1.63851694]
[1754797602231,0.5,813.91,813.05,1.63851694]
[1754797602431,0.5,813.88,813.05,1.63851694]
[1754797602628,0.5,813.83,813.05,1.63851694]
[1754797602929,0.5,813.92,813.05,1.63851694]
[1754797603134,0.5,813.92,813.01,1.63851694]
[1754797603332,0.292,813.8,813.01,1.63851694]
[1754797603533,0.5,813.92,813.01,1.63851694]
[1754797603834,0.5,813.92,813.03,1.63851694]